Workbook

Sheet % VA To Total Income
A1: Beneficiary | B1: File Number | D1: Fiduciary | E1: Misuse Period Date | G1: Misuse Amount Calculator
A4: Income VA | B4: Payment Type | C4: From - Day 01 (i.e. 01/01/2018) | D4: To - Up To Day 31 (i.e., 01/31/2018) | E4: Monthly or Lump Sum Benefit | F4: Amount | G4: Comments VA Income
B5: Beginning Balance | F5: =E5 -> 0
E6: =IF(B6 = "Monthly Payment", "Enter MONTHLY Sum", IF(B6="Prorated Payment", "Enter MONTHLY Sum", IF(B6="Single Payment", "Enter LUMP Sum", IF(B6="Retro", "Enter LUMP Sum", "")))) ->  | F6: =IF(ISNUMBER(E6),IF(B6="Prorated Payment",IF(AND((DAY(C6)=30),(DAY(D6)=31)),(DAYS360(C6,D6)+1)*(E6/30),IF(DAY(C6)<>31,IF(MONTH(D6)<>2,IF(DAY(D6)=31,DAYS360(C6,D6)*(E6/30),(DAYS360(C6,D6)+1)*(E6/30)),IF(DAY(D6)<28,(DAYS360(C6,D6)+1)*(E6/30),(DAYS360(C6,D6)+31-DAY(D6))*(E6/30))),IF(MONTH(D6)<>2,IF(DAY(D6)=31,DAYS360(C6,D6)*(E6/30),DAYS360(C6,D6)*(E6/30)),IF(DAY(D6)<28,DAYS360(C6,D6)*(E6/30),(DAYS360(C6,D6)+30-DAY(D6))*(E6/30))))),IF(B6="Retro",E6,IF(B6="Single Payment",E6, IF(B6="Monthly Payment",IF(AND((DAY(C6)=30),(DAY(D6)=31)),(DAYS360(C6,D6)+1)*(E6/30),IF(DAY(C6)<>31,IF(MONTH(D6)<>2,IF(DAY(D6)=31,DAYS360(C6,D6)*(E6/30),(DAYS360(C6,D6)+1)*(E6/30)),IF(DAY(D6)<28,(DAYS360(C6,D6)+1)*(E6/30),(DAYS360(C6,D6)+31-DAY(D6))*(E6/30))),IF(MONTH(D6)<>2,IF(DAY(D6)=31,DAYS360(C6,D6)*(E6/30),DAYS360(C6,D6)*(E6/30)),IF(DAY(D6)<28,DAYS360(C6,D6)*(E6/30),(DAYS360(C6,D6)+30-DAY(D6))*(E6/30))))), "")))), "") -> 
E7: =IF(B7 = "Monthly Payment", "Enter MONTHLY Sum", IF(B7="Prorated Payment", "Enter MONTHLY Sum", IF(B7="Single Payment", "Enter LUMP Sum", IF(B7="Retro", "Enter LUMP Sum", "")))) ->  | F7: =IF(ISNUMBER(E7),IF(B7="Prorated Payment",IF(AND((DAY(C7)=30),(DAY(D7)=31)),(DAYS360(C7,D7)+1)*(E7/30),IF(DAY(C7)<>31,IF(MONTH(D7)<>2,IF(DAY(D7)=31,DAYS360(C7,D7)*(E7/30),(DAYS360(C7,D7)+1)*(E7/30)),IF(DAY(D7)<28,(DAYS360(C7,D7)+1)*(E7/30),(DAYS360(C7,D7)+31-DAY(D7))*(E7/30))),IF(MONTH(D7)<>2,IF(DAY(D7)=31,DAYS360(C7,D7)*(E7/30),DAYS360(C7,D7)*(E7/30)),IF(DAY(D7)<28,DAYS360(C7,D7)*(E7/30),(DAYS360(C7,D7)+30-DAY(D7))*(E7/30))))),IF(B7="Retro",E7,IF(B7="Single Payment",E7, IF(B7="Monthly Payment",IF(AND((DAY(C7)=30),(DAY(D7)=31)),(DAYS360(C7,D7)+1)*(E7/30),IF(DAY(C7)<>31,IF(MONTH(D7)<>2,IF(DAY(D7)=31,DAYS360(C7,D7)*(E7/30),(DAYS360(C7,D7)+1)*(E7/30)),IF(DAY(D7)<28,(DAYS360(C7,D7)+1)*(E7/30),(DAYS360(C7,D7)+31-DAY(D7))*(E7/30))),IF(MONTH(D7)<>2,IF(DAY(D7)=31,DAYS360(C7,D7)*(E7/30),DAYS360(C7,D7)*(E7/30)),IF(DAY(D7)<28,DAYS360(C7,D7)*(E7/30),(DAYS360(C7,D7)+30-DAY(D7))*(E7/30))))), "")))), "") -> 
E9: =IF(B9 = "Monthly Payment", "Enter MONTHLY Sum", IF(B9="Prorated Payment", "Enter MONTHLY Sum", IF(B9="Single Payment", "Enter LUMP Sum", IF(B9="Retro", "Enter LUMP Sum", "")))) ->  | F9: =IF(ISNUMBER(E9),IF(B9="Prorated Payment",IF(AND((DAY(C9)=30),(DAY(D9)=31)),(DAYS360(C9,D9)+1)*(E9/30),IF(DAY(C9)<>31,IF(MONTH(D9)<>2,IF(DAY(D9)=31,DAYS360(C9,D9)*(E9/30),(DAYS360(C9,D9)+1)*(E9/30)),IF(DAY(D9)<28,(DAYS360(C9,D9)+1)*(E9/30),(DAYS360(C9,D9)+31-DAY(D9))*(E9/30))),IF(MONTH(D9)<>2,IF(DAY(D9)=31,DAYS360(C9,D9)*(E9/30),DAYS360(C9,D9)*(E9/30)),IF(DAY(D9)<28,DAYS360(C9,D9)*(E9/30),(DAYS360(C9,D9)+30-DAY(D9))*(E9/30))))),IF(B9="Retro",E9,IF(B9="Single Payment",E9, IF(B9="Monthly Payment",IF(AND((DAY(C9)=30),(DAY(D9)=31)),(DAYS360(C9,D9)+1)*(E9/30),IF(DAY(C9)<>31,IF(MONTH(D9)<>2,IF(DAY(D9)=31,DAYS360(C9,D9)*(E9/30),(DAYS360(C9,D9)+1)*(E9/30)),IF(DAY(D9)<28,(DAYS360(C9,D9)+1)*(E9/30),(DAYS360(C9,D9)+31-DAY(D9))*(E9/30))),IF(MONTH(D9)<>2,IF(DAY(D9)=31,DAYS360(C9,D9)*(E9/30),DAYS360(C9,D9)*(E9/30)),IF(DAY(D9)<28,DAYS360(C9,D9)*(E9/30),(DAYS360(C9,D9)+30-DAY(D9))*(E9/30))))), "")))), "") -> 
E10: Total Income VA | F10: =SUM(F5:F9) -> 0
A11: Income Other | B11: Payment Type | C11: From - Day 01 (i.e. 01/01/2018) | D11: To - Up To Day 31 (i.e., 01/31/2018) | E11: Monthly or Lump Sum Benefit | F11: Amount | G11: Comments Other Income
B12: Beginning Balance | F12: =E12 -> 0
E13: =IF(B13 = "Monthly Payment", "Enter MONTHLY Sum", IF(B13="Prorated Payment", "Enter MONTHLY Sum", IF(B13="Single Payment", "Enter LUMP Sum", IF(B13="Retro", "Enter LUMP Sum", "")))) ->  | F13: =IF(ISNUMBER(E13),IF(B13="Prorated Payment", IF(AND((DAY(C13)=30),(DAY(D13)=31)),(DAYS360(C13,D13)+1)*(E13/30),IF(DAY(C13)<>31,IF(MONTH(D13)<>2,IF(DAY(D13)=31,DAYS360(C13,D13)*(E13/30),(DAYS360(C13,D13)+1)*(E13/30)),IF(DAY(D13)<28,(DAYS360(C13,D13)+1)*(E13/30),(DAYS360(C13,D13)+31-DAY(D13))*(E13/30))),IF(MONTH(D13)<>2,IF(DAY(D13)=31,DAYS360(C13,D13)*(E13/30),DAYS360(C13,D13)*(E13/30)),IF(DAY(D13)<28,DAYS360(C13,D13)*(E13/30),(DAYS360(C13,D13)+30-DAY(D13))*(E13/30))))), IF(B13="Retro", E13, IF(B13="Single Payment", E13, IF(B13="Monthly Payment", IF(AND((DAY(C13)=30),(DAY(D13)=31)),(DAYS360(C13,D13)+1)*(E13/30),IF(DAY(C13)<>31,IF(MONTH(D13)<>2,IF(DAY(D13)=31,DAYS360(C13,D13)*(E13/30),(DAYS360(C13,D13)+1)*(E13/30)),IF(DAY(D13)<28,(DAYS360(C13,D13)+1)*(E13/30),(DAYS360(C13,D13)+31-DAY(D13))*(E13/30))),IF(MONTH(D13)<>2,IF(DAY(D13)=31,DAYS360(C13,D13)*(E13/30),DAYS360(C13,D13)*(E13/30)),IF(DAY(D13)<28,DAYS360(C13,D13)*(E13/30),(DAYS360(C13,D13)+30-DAY(D13))*(E13/30))))),"")))), "") -> 
F14: =IF(ISNUMBER(E14),IF(B14="Prorated Payment", IF(AND((DAY(C14)=30),(DAY(D14)=31)),(DAYS360(C14,D14)+1)*(E14/30),IF(DAY(C14)<>31,IF(MONTH(D14)<>2,IF(DAY(D14)=31,DAYS360(C14,D14)*(E14/30),(DAYS360(C14,D14)+1)*(E14/30)),IF(DAY(D14)<28,(DAYS360(C14,D14)+1)*(E14/30),(DAYS360(C14,D14)+31-DAY(D14))*(E14/30))),IF(MONTH(D14)<>2,IF(DAY(D14)=31,DAYS360(C14,D14)*(E14/30),DAYS360(C14,D14)*(E14/30)),IF(DAY(D14)<28,DAYS360(C14,D14)*(E14/30),(DAYS360(C14,D14)+30-DAY(D14))*(E14/30))))), IF(B14="Retro", E14, IF(B14="Single Payment", E14, IF(B14="Monthly Payment", IF(AND((DAY(C14)=30),(DAY(D14)=31)),(DAYS360(C14,D14)+1)*(E14/30),IF(DAY(C14)<>31,IF(MONTH(D14)<>2,IF(DAY(D14)=31,DAYS360(C14,D14)*(E14/30),(DAYS360(C14,D14)+1)*(E14/30)),IF(DAY(D14)<28,(DAYS360(C14,D14)+1)*(E14/30),(DAYS360(C14,D14)+31-DAY(D14))*(E14/30))),IF(MONTH(D14)<>2,IF(DAY(D14)=31,DAYS360(C14,D14)*(E14/30),DAYS360(C14,D14)*(E14/30)),IF(DAY(D14)<28,DAYS360(C14,D14)*(E14/30),(DAYS360(C14,D14)+30-DAY(D14))*(E14/30))))),"")))), "") -> 
E16: =IF(B16 = "Monthly Payment", "Enter MONTHLY Sum", IF(B16="Prorated Payment", "Enter MONTHLY Sum", IF(B16="Single Payment", "Enter LUMP Sum", IF(B16="Retro", "Enter LUMP Sum", "")))) ->  | F16: =IF(ISNUMBER(E16),IF(B16="Prorated Payment", IF(AND((DAY(C16)=30),(DAY(D16)=31)),(DAYS360(C16,D16)+1)*(E16/30),IF(DAY(C16)<>31,IF(MONTH(D16)<>2,IF(DAY(D16)=31,DAYS360(C16,D16)*(E16/30),(DAYS360(C16,D16)+1)*(E16/30)),IF(DAY(D16)<28,(DAYS360(C16,D16)+1)*(E16/30),(DAYS360(C16,D16)+31-DAY(D16))*(E16/30))),IF(MONTH(D16)<>2,IF(DAY(D16)=31,DAYS360(C16,D16)*(E16/30),DAYS360(C16,D16)*(E16/30)),IF(DAY(D16)<28,DAYS360(C16,D16)*(E16/30),(DAYS360(C16,D16)+30-DAY(D16))*(E16/30))))), IF(B16="Retro", E16, IF(B16="Single Payment", E16, IF(B16="Monthly Payment", IF(AND((DAY(C16)=30),(DAY(D16)=31)),(DAYS360(C16,D16)+1)*(E16/30),IF(DAY(C16)<>31,IF(MONTH(D16)<>2,IF(DAY(D16)=31,DAYS360(C16,D16)*(E16/30),(DAYS360(C16,D16)+1)*(E16/30)),IF(DAY(D16)<28,(DAYS360(C16,D16)+1)*(E16/30),(DAYS360(C16,D16)+31-DAY(D16))*(E16/30))),IF(MONTH(D16)<>2,IF(DAY(D16)=31,DAYS360(C16,D16)*(E16/30),DAYS360(C16,D16)*(E16/30)),IF(DAY(D16)<28,DAYS360(C16,D16)*(E16/30),(DAYS360(C16,D16)+30-DAY(D16))*(E16/30))))),"")))), "") -> 
E17: Total Income Other | F17: =SUM(F12:F16) -> 0
E18: Total VA + Other | F18: =F10+F17 -> 0
E19: % VA Income to Total Income | F19: =F10/F18 -> 
A20: Expenses Paid | B20: Expense Type | C20: From - Day 01 (i.e. 01/01/2018) | D20: To - Up To Day 31 (i.e., 01/31/2018) | E20: Expense Amount | F20: Amount | G20: Comments Expenses
E21: =IF(B21="Monthly Expense","Enter MONTHLY Sum",IF(B21="Prorated Expense","Enter MONTHLY Sum",IF(B21="Single Expense","Enter LUMP Sum",""))) ->  | F21: =IF(ISNUMBER(E21),IF(B21="Prorated Expense",IF(AND((DAY(C21)=30),(DAY(D21)=31)),(DAYS360(C21,D21)+1)*(E21/30),IF(DAY(C21)<>31,IF(MONTH(D21)<>2,IF(DAY(D21)=31,DAYS360(C21,D21)*(E21/30),(DAYS360(C21,D21)+1)*(E21/30)),IF(DAY(D21)<28,(DAYS360(C21,D21)+1)*(E21/30),(DAYS360(C21,D21)+31-DAY(D21))*(E21/30))),IF(MONTH(D21)<>2,IF(DAY(D21)=31,DAYS360(C21,D21)*(E21/30),DAYS360(C21,D21)*(E21/30)),IF(DAY(D21)<28,DAYS360(C21,D21)*(E21/30),(DAYS360(C21,D21)+30-DAY(D21))*(E21/30))))),IF(B21="Single Expense",E21,IF(B21="Monthly Expense",IF(AND((DAY(C21)=30),(DAY(D21)=31)),(DAYS360(C21,D21)+1)*(E21/30),IF(DAY(C21)<>31,IF(MONTH(D21)<>2,IF(DAY(D21)=31,DAYS360(C21,D21)*(E21/30),(DAYS360(C21,D21)+1)*(E21/30)),IF(DAY(D21)<28,(DAYS360(C21,D21)+1)*(E21/30),(DAYS360(C21,D21)+31-DAY(D21))*(E21/30))),IF(MONTH(D21)<>2,IF(DAY(D21)=31,DAYS360(C21,D21)*(E21/30),DAYS360(C21,D21)*(E21/30)),IF(DAY(D21)<28,DAYS360(C21,D21)*(E21/30),(DAYS360(C21,D21)+30-DAY(D21))*(E21/30))))),""))),"") -> 
E22: =IF(B22="Monthly Expense","Enter MONTHLY Sum",IF(B22="Prorated Expense","Enter MONTHLY Sum",IF(B22="Single Expense","Enter LUMP Sum",""))) ->  | F22: =IF(ISNUMBER(E22),IF(B22="Prorated Expense",IF(AND((DAY(C22)=30),(DAY(D22)=31)),(DAYS360(C22,D22)+1)*(E22/30),IF(DAY(C22)<>31,IF(MONTH(D22)<>2,IF(DAY(D22)=31,DAYS360(C22,D22)*(E22/30),(DAYS360(C22,D22)+1)*(E22/30)),IF(DAY(D22)<28,(DAYS360(C22,D22)+1)*(E22/30),(DAYS360(C22,D22)+31-DAY(D22))*(E22/30))),IF(MONTH(D22)<>2,IF(DAY(D22)=31,DAYS360(C22,D22)*(E22/30),DAYS360(C22,D22)*(E22/30)),IF(DAY(D22)<28,DAYS360(C22,D22)*(E22/30),(DAYS360(C22,D22)+30-DAY(D22))*(E22/30))))),IF(B22="Single Expense",E22,IF(B22="Monthly Expense",IF(AND((DAY(C22)=30),(DAY(D22)=31)),(DAYS360(C22,D22)+1)*(E22/30),IF(DAY(C22)<>31,IF(MONTH(D22)<>2,IF(DAY(D22)=31,DAYS360(C22,D22)*(E22/30),(DAYS360(C22,D22)+1)*(E22/30)),IF(DAY(D22)<28,(DAYS360(C22,D22)+1)*(E22/30),(DAYS360(C22,D22)+31-DAY(D22))*(E22/30))),IF(MONTH(D22)<>2,IF(DAY(D22)=31,DAYS360(C22,D22)*(E22/30),DAYS360(C22,D22)*(E22/30)),IF(DAY(D22)<28,DAYS360(C22,D22)*(E22/30),(DAYS360(C22,D22)+30-DAY(D22))*(E22/30))))),""))),"") -> 
E23: =IF(B23="Monthly Expense","Enter MONTHLY Sum",IF(B23="Prorated Expense","Enter MONTHLY Sum",IF(B23="Single Expense","Enter LUMP Sum",""))) ->  | F23: =IF(ISNUMBER(E23),IF(B23="Prorated Expense",IF(AND((DAY(C23)=30),(DAY(D23)=31)),(DAYS360(C23,D23)+1)*(E23/30),IF(DAY(C23)<>31,IF(MONTH(D23)<>2,IF(DAY(D23)=31,DAYS360(C23,D23)*(E23/30),(DAYS360(C23,D23)+1)*(E23/30)),IF(DAY(D23)<28,(DAYS360(C23,D23)+1)*(E23/30),(DAYS360(C23,D23)+31-DAY(D23))*(E23/30))),IF(MONTH(D23)<>2,IF(DAY(D23)=31,DAYS360(C23,D23)*(E23/30),DAYS360(C23,D23)*(E23/30)),IF(DAY(D23)<28,DAYS360(C23,D23)*(E23/30),(DAYS360(C23,D23)+30-DAY(D23))*(E23/30))))),IF(B23="Single Expense",E23,IF(B23="Monthly Expense",IF(AND((DAY(C23)=30),(DAY(D23)=31)),(DAYS360(C23,D23)+1)*(E23/30),IF(DAY(C23)<>31,IF(MONTH(D23)<>2,IF(DAY(D23)=31,DAYS360(C23,D23)*(E23/30),(DAYS360(C23,D23)+1)*(E23/30)),IF(DAY(D23)<28,(DAYS360(C23,D23)+1)*(E23/30),(DAYS360(C23,D23)+31-DAY(D23))*(E23/30))),IF(MONTH(D23)<>2,IF(DAY(D23)=31,DAYS360(C23,D23)*(E23/30),DAYS360(C23,D23)*(E23/30)),IF(DAY(D23)<28,DAYS360(C23,D23)*(E23/30),(DAYS360(C23,D23)+30-DAY(D23))*(E23/30))))),""))),"") -> 
A26: Placeholder | E26: Total Expenses: | F26: =SUM(F21:F25) -> 0
E27: Total Remaining FUM | F27: =F18-F26 -> 0
E28: VA Applied to Expenses | F28: =F19*F26 ->  | G28: =F26-F28 -> 
E29: Remaining VA FUM | F29: =F10-F28 ->  | G29: =F27-F29 -> 
E30: Total Funds Accounted For or Transferred | G30: Enter Total Funds Accounted For At End Of Accounting Period or Transferred.
E31: % VA Accounted or Transferred | F31: =F30*F19 -> 
E32: % Other Accounted or Transferred | F32: =F30-F31 -> 
E33: VA Misuse Amount | F33: =IF(AND(F31>=F29),0,F29-F31) -> 
E34: Other Misuse Amount | F34: =IF(AND(F32>=G29),0,((F27-F30)-F33)) -> 
E35: Total Misuse Amount | F35: =F33+F34 -> 

Sheet Instructions

Sheet PDF Transfer Instructions

Sheet Example % No Fund Transfer
A1: Beneficiary | B1: File Number | D1: Fiduciary | E1: Misuse Period Date | G1: Misuse Amount Calculator
A2: Jane/John Doe | B2: xxx-xx-xxxx | D2: Misuse, Fiduciary | E2: 2014-10-01 | F2: 2017-02-28
A3: Amount calculations use a "Pro-Rated"date formula based on "From - To" dates. All "From - To" dates must be entered with a "From" date as "MM-01-YR" and "To" dates as "MM-(28, 30, 31)-YR", representing the actual calendar days of that month. Enter lump sum payments (Retro/Transfers) using the entire number of days of that particular month and the amount paid. Ensure calculations include the ending balance of the last verified VA FUM. Copy and paste additional rows as necessary. Use the comment cells for informational purposes relating to each individual row. See FPG, 5. for further asistance.
A4: Income VA | B4: Payment Type | C4: From - Day 01 (i.e. 01/01/2018) | D4: To - Up To Day 31 (i.e., 01/31/2018) | E4: Monthly or Lump Sum Benefit | F4: Amount | G4: Comments VA Income
B5: Beginning Balance | C5: 2014-10-01 | D5: 2014-10-31 | E5: 32000 | F5: =E5 -> 32000 | G5: Beginning VA Estate Balance - Fid appointed 10-23-2014
B6: Retro | C6: 2014-10-01 | D6: 2014-10-01 | E6: 2976 | F6: =IF(ISNUMBER(E6),IF(B6="Prorated Payment",IF(AND((DAY(C6)=30),(DAY(D6)=31)),(DAYS360(C6,D6)+1)*(E6/30),IF(DAY(C6)<>31,IF(MONTH(D6)<>2,IF(DAY(D6)=31,DAYS360(C6,D6)*(E6/30),(DAYS360(C6,D6)+1)*(E6/30)),IF(DAY(D6)<28,(DAYS360(C6,D6)+1)*(E6/30),(DAYS360(C6,D6)+31-DAY(D6))*(E6/30))),IF(MONTH(D6)<>2,IF(DAY(D6)=31,DAYS360(C6,D6)*(E6/30),DAYS360(C6,D6)*(E6/30)),IF(DAY(D6)<28,DAYS360(C6,D6)*(E6/30),(DAYS360(C6,D6)+30-DAY(D6))*(E6/30))))),IF(B6="Retro",E6,IF(B6="Single Payment",E6, IF(B6="Monthly Payment",IF(AND((DAY(C6)=30),(DAY(D6)=31)),(DAYS360(C6,D6)+1)*(E6/30),IF(DAY(C6)<>31,IF(MONTH(D6)<>2,IF(DAY(D6)=31,DAYS360(C6,D6)*(E6/30),(DAYS360(C6,D6)+1)*(E6/30)),IF(DAY(D6)<28,(DAYS360(C6,D6)+1)*(E6/30),(DAYS360(C6,D6)+31-DAY(D6))*(E6/30))),IF(MONTH(D6)<>2,IF(DAY(D6)=31,DAYS360(C6,D6)*(E6/30),DAYS360(C6,D6)*(E6/30)),IF(DAY(D6)<28,DAYS360(C6,D6)*(E6/30),(DAYS360(C6,D6)+30-DAY(D6))*(E6/30))))), "")))), "") -> 2976
B7: Single Payment | C7: 2016-01-01 | D7: 2016-01-01 | E7: 3052 | F7: =IF(ISNUMBER(E7),IF(B7="Prorated Payment",IF(AND((DAY(C7)=30),(DAY(D7)=31)),(DAYS360(C7,D7)+1)*(E7/30),IF(DAY(C7)<>31,IF(MONTH(D7)<>2,IF(DAY(D7)=31,DAYS360(C7,D7)*(E7/30),(DAYS360(C7,D7)+1)*(E7/30)),IF(DAY(D7)<28,(DAYS360(C7,D7)+1)*(E7/30),(DAYS360(C7,D7)+31-DAY(D7))*(E7/30))),IF(MONTH(D7)<>2,IF(DAY(D7)=31,DAYS360(C7,D7)*(E7/30),DAYS360(C7,D7)*(E7/30)),IF(DAY(D7)<28,DAYS360(C7,D7)*(E7/30),(DAYS360(C7,D7)+30-DAY(D7))*(E7/30))))),IF(B7="Retro",E7,IF(B7="Single Payment",E7, IF(B7="Monthly Payment",IF(AND((DAY(C7)=30),(DAY(D7)=31)),(DAYS360(C7,D7)+1)*(E7/30),IF(DAY(C7)<>31,IF(MONTH(D7)<>2,IF(DAY(D7)=31,DAYS360(C7,D7)*(E7/30),(DAYS360(C7,D7)+1)*(E7/30)),IF(DAY(D7)<28,(DAYS360(C7,D7)+1)*(E7/30),(DAYS360(C7,D7)+31-DAY(D7))*(E7/30))),IF(MONTH(D7)<>2,IF(DAY(D7)=31,DAYS360(C7,D7)*(E7/30),DAYS360(C7,D7)*(E7/30)),IF(DAY(D7)<28,DAYS360(C7,D7)*(E7/30),(DAYS360(C7,D7)+30-DAY(D7))*(E7/30))))), "")))), "") -> 3052
B8: Monthly Payment | C8: 2017-01-01 | D8: 2017-02-28 | E8: 3105 | F8: 6210
B9: Prorated Payment | C9: 2016-01-01 | D9: 2016-02-15 | E9: 5000 | F9: =IF(ISNUMBER(E9),IF(B9="Prorated Payment",IF(AND((DAY(C9)=30),(DAY(D9)=31)),(DAYS360(C9,D9)+1)*(E9/30),IF(DAY(C9)<>31,IF(MONTH(D9)<>2,IF(DAY(D9)=31,DAYS360(C9,D9)*(E9/30),(DAYS360(C9,D9)+1)*(E9/30)),IF(DAY(D9)<28,(DAYS360(C9,D9)+1)*(E9/30),(DAYS360(C9,D9)+31-DAY(D9))*(E9/30))),IF(MONTH(D9)<>2,IF(DAY(D9)=31,DAYS360(C9,D9)*(E9/30),DAYS360(C9,D9)*(E9/30)),IF(DAY(D9)<28,DAYS360(C9,D9)*(E9/30),(DAYS360(C9,D9)+30-DAY(D9))*(E9/30))))),IF(B9="Retro",E9,IF(B9="Single Payment",E9, IF(B9="Monthly Payment",IF(AND((DAY(C9)=30),(DAY(D9)=31)),(DAYS360(C9,D9)+1)*(E9/30),IF(DAY(C9)<>31,IF(MONTH(D9)<>2,IF(DAY(D9)=31,DAYS360(C9,D9)*(E9/30),(DAYS360(C9,D9)+1)*(E9/30)),IF(DAY(D9)<28,(DAYS360(C9,D9)+1)*(E9/30),(DAYS360(C9,D9)+31-DAY(D9))*(E9/30))),IF(MONTH(D9)<>2,IF(DAY(D9)=31,DAYS360(C9,D9)*(E9/30),DAYS360(C9,D9)*(E9/30)),IF(DAY(D9)<28,DAYS360(C9,D9)*(E9/30),(DAYS360(C9,D9)+30-DAY(D9))*(E9/30))))), "")))), "") -> 7500
E10: =IF(B10 = "Monthly Payment", "Enter MONTHLY Sum", IF(B10="Prorated Payment", "Enter MONTHLY Sum", IF(B10="Single Payment", "Enter LUMP Sum", IF(B10="Retro", "Enter LUMP Sum", "")))) -> 
E20: =IF(B20 = "Monthly Payment", "Enter MONTHLY Sum", IF(B20="Prorated Payment", "Enter MONTHLY Sum", IF(B20="Single Payment", "Enter LUMP Sum", IF(B20="Retro", "Enter LUMP Sum", "")))) -> 
E24: Total Income VA | F24: =SUM(F5:F23) -> 51738
A25: Income Other | C25: From - Day 01 (i.e. 01/01/2018) | D25: To - Up To Day 31 (i.e., 01/31/2018) | E25: Monthly or Lump Sum Benefit | F25: Amount | G25: Comments Other Income
B26: Beginning Balance | C26: 2014-10-01 | D26: 2014-10-31 | E26: 11000 | F26: =E26 -> 11000 | G26: Beginning Other Funds
B27: Single Payment | C27: 2015-11-01 | D27: 2015-11-01 | E27: 1023 | F27: =IF(ISNUMBER(E27),IF(B27="Prorated Payment", IF(AND((DAY(C27)=30),(DAY(D27)=31)),(DAYS360(C27,D27)+1)*(E27/30),IF(DAY(C27)<>31,IF(MONTH(D27)<>2,IF(DAY(D27)=31,DAYS360(C27,D27)*(E27/30),(DAYS360(C27,D27)+1)*(E27/30)),IF(DAY(D27)<28,(DAYS360(C27,D27)+1)*(E27/30),(DAYS360(C27,D27)+31-DAY(D27))*(E27/30))),IF(MONTH(D27)<>2,IF(DAY(D27)=31,DAYS360(C27,D27)*(E27/30),DAYS360(C27,D27)*(E27/30)),IF(DAY(D27)<28,DAYS360(C27,D27)*(E27/30),(DAYS360(C27,D27)+30-DAY(D27))*(E27/30))))), IF(B27="Retro", E27, IF(B27="Single Payment", E27, IF(B27="Monthly Payment", IF(AND((DAY(C27)=30),(DAY(D27)=31)),(DAYS360(C27,D27)+1)*(E27/30),IF(DAY(C27)<>31,IF(MONTH(D27)<>2,IF(DAY(D27)=31,DAYS360(C27,D27)*(E27/30),(DAYS360(C27,D27)+1)*(E27/30)),IF(DAY(D27)<28,(DAYS360(C27,D27)+1)*(E27/30),(DAYS360(C27,D27)+31-DAY(D27))*(E27/30))),IF(MONTH(D27)<>2,IF(DAY(D27)=31,DAYS360(C27,D27)*(E27/30),DAYS360(C27,D27)*(E27/30)),IF(DAY(D27)<28,DAYS360(C27,D27)*(E27/30),(DAYS360(C27,D27)+30-DAY(D27))*(E27/30))))),"")))), "") -> 1023
B28: Monthly Payment | C28: 2016-01-01 | D28: 2016-12-31 | E28: 1076 | F28: =IF(ISNUMBER(E28),IF(B28="Prorated Payment", IF(AND((DAY(C28)=30),(DAY(D28)=31)),(DAYS360(C28,D28)+1)*(E28/30),IF(DAY(C28)<>31,IF(MONTH(D28)<>2,IF(DAY(D28)=31,DAYS360(C28,D28)*(E28/30),(DAYS360(C28,D28)+1)*(E28/30)),IF(DAY(D28)<28,(DAYS360(C28,D28)+1)*(E28/30),(DAYS360(C28,D28)+31-DAY(D28))*(E28/30))),IF(MONTH(D28)<>2,IF(DAY(D28)=31,DAYS360(C28,D28)*(E28/30),DAYS360(C28,D28)*(E28/30)),IF(DAY(D28)<28,DAYS360(C28,D28)*(E28/30),(DAYS360(C28,D28)+30-DAY(D28))*(E28/30))))), IF(B28="Retro", E28, IF(B28="Single Payment", E28, IF(B28="Monthly Payment", IF(AND((DAY(C28)=30),(DAY(D28)=31)),(DAYS360(C28,D28)+1)*(E28/30),IF(DAY(C28)<>31,IF(MONTH(D28)<>2,IF(DAY(D28)=31,DAYS360(C28,D28)*(E28/30),(DAYS360(C28,D28)+1)*(E28/30)),IF(DAY(D28)<28,(DAYS360(C28,D28)+1)*(E28/30),(DAYS360(C28,D28)+31-DAY(D28))*(E28/30))),IF(MONTH(D28)<>2,IF(DAY(D28)=31,DAYS360(C28,D28)*(E28/30),DAYS360(C28,D28)*(E28/30)),IF(DAY(D28)<28,DAYS360(C28,D28)*(E28/30),(DAYS360(C28,D28)+30-DAY(D28))*(E28/30))))),"")))), "") -> 12912
B29: Prorated Payment | C29: 2017-01-01 | D29: 2017-02-15 | E29: 1092 | F29: 1638
E31: =IF(B31 = "Monthly Payment", "Enter MONTHLY Sum", IF(B31="Prorated Payment", "Enter MONTHLY Sum", IF(B31="Single Payment", "Enter LUMP Sum", IF(B31="Retro", "Enter LUMP Sum", "")))) -> 
E47: Total Income Other | F47: =SUM(F26:F46) -> 26573
E48: Total VA + Other | F48: =F24+F47 -> 78311
E49: % VA Income to Total Income | F49: =F24/F48 -> 0.6606734686
A50: Expenses Paid | C50: From - Day 01 (i.e. 01/01/2018) | D50: To - Up To Day 31 (i.e., 01/31/2018) | E50: Expense Amount | F50: Amount | G50: Comments Expenses
B51: Single Expense | C51: 2014-10-28 | D51: 2014-10-28 | E51: 2500 | F51: =IF(ISNUMBER(E51),IF(B51="Prorated Expense",IF(AND((DAY(C51)=30),(DAY(D51)=31)),(DAYS360(C51,D51)+1)*(E51/30),IF(DAY(C51)<>31,IF(MONTH(D51)<>2,IF(DAY(D51)=31,DAYS360(C51,D51)*(E51/30),(DAYS360(C51,D51)+1)*(E51/30)),IF(DAY(D51)<28,(DAYS360(C51,D51)+1)*(E51/30),(DAYS360(C51,D51)+31-DAY(D51))*(E51/30))),IF(MONTH(D51)<>2,IF(DAY(D51)=31,DAYS360(C51,D51)*(E51/30),DAYS360(C51,D51)*(E51/30)),IF(DAY(D51)<28,DAYS360(C51,D51)*(E51/30),(DAYS360(C51,D51)+30-DAY(D51))*(E51/30))))),IF(B51="Single Expense",E51,IF(B51="Monthly Expense",IF(AND((DAY(C51)=30),(DAY(D51)=31)),(DAYS360(C51,D51)+1)*(E51/30),IF(DAY(C51)<>31,IF(MONTH(D51)<>2,IF(DAY(D51)=31,DAYS360(C51,D51)*(E51/30),(DAYS360(C51,D51)+1)*(E51/30)),IF(DAY(D51)<28,(DAYS360(C51,D51)+1)*(E51/30),(DAYS360(C51,D51)+31-DAY(D51))*(E51/30))),IF(MONTH(D51)<>2,IF(DAY(D51)=31,DAYS360(C51,D51)*(E51/30),DAYS360(C51,D51)*(E51/30)),IF(DAY(D51)<28,DAYS360(C51,D51)*(E51/30),(DAYS360(C51,D51)+30-DAY(D51))*(E51/30))))),""))),"") -> 2500
B52: Monthly Expense | C52: 2014-11-01 | D52: 2015-10-31 | E52: 2350 | F52: =IF(ISNUMBER(E52),IF(B52="Prorated Expense",IF(AND((DAY(C52)=30),(DAY(D52)=31)),(DAYS360(C52,D52)+1)*(E52/30),IF(DAY(C52)<>31,IF(MONTH(D52)<>2,IF(DAY(D52)=31,DAYS360(C52,D52)*(E52/30),(DAYS360(C52,D52)+1)*(E52/30)),IF(DAY(D52)<28,(DAYS360(C52,D52)+1)*(E52/30),(DAYS360(C52,D52)+31-DAY(D52))*(E52/30))),IF(MONTH(D52)<>2,IF(DAY(D52)=31,DAYS360(C52,D52)*(E52/30),DAYS360(C52,D52)*(E52/30)),IF(DAY(D52)<28,DAYS360(C52,D52)*(E52/30),(DAYS360(C52,D52)+30-DAY(D52))*(E52/30))))),IF(B52="Single Expense",E52,IF(B52="Monthly Expense",IF(AND((DAY(C52)=30),(DAY(D52)=31)),(DAYS360(C52,D52)+1)*(E52/30),IF(DAY(C52)<>31,IF(MONTH(D52)<>2,IF(DAY(D52)=31,DAYS360(C52,D52)*(E52/30),(DAYS360(C52,D52)+1)*(E52/30)),IF(DAY(D52)<28,(DAYS360(C52,D52)+1)*(E52/30),(DAYS360(C52,D52)+31-DAY(D52))*(E52/30))),IF(MONTH(D52)<>2,IF(DAY(D52)=31,DAYS360(C52,D52)*(E52/30),DAYS360(C52,D52)*(E52/30)),IF(DAY(D52)<28,DAYS360(C52,D52)*(E52/30),(DAYS360(C52,D52)+30-DAY(D52))*(E52/30))))),""))),"") -> 28200 | G52: Authorized allowances
B53: Prorated Expense | C53: 2015-11-01 | D53: 2017-02-28 | E53: 2420 | F53: 38720 | G53: Revised authorized or allowed expenses from fidben
E54: =IF(B54="Monthly Expense","Enter MONTHLY Sum",IF(B54="Prorated Expense","Enter MONTHLY Sum",IF(B54="Single Expense","Enter LUMP Sum",""))) -> 
A61: Placeholder
E62: Total Expenses: | F62: =SUM(F51:F61) -> 69420
E63: Total Remaining FUM | F63: =F48-F62 -> 8891
E64: VA Applied to Expenses | F64: =F49*F62 -> 45863.95219 | G64: =F62-F64 -> 23556.04781
E65: Remaining VA FUM | F65: =F24-F64 -> 5874.047809 | G65: =F63-F65 -> 3016.952191
E66: Total Funds Accounted For or Transferred | G66: Enter Total Funds Accounted For At End Of Accounting Period or Transferred.
E67: % VA Accounted or Transferred | F67: =F66*F49 -> 0
E68: % Other Accounted or Transferred | F68: =F66-F67 -> 0
E69: VA Misuse Amount | F69: =IF(AND(F67>=F65),0,F65-F67) -> 5874.047809
E70: Other Misuse Amount | F70: =IF(AND(F68>=G65),0,((F63-F66)-F69)) -> 3016.952191
E71: Total Misuse Amount | F71: =F69+F70 -> 8891

Sheet Example % Fund Transfer
A1: Beneficiary | B1: File Number | D1: Fiduciary | E1: Misuse Period Date | G1: Misuse Amount Calculator
A2: Jane/John Doe | B2: xxx-xx-xxxx | D2: Misuse, Fiduciary | E2: 2014-10-01 | F2: 2017-02-28
A3: Amount calculations use a "Pro-Rated"date formula based on "From - To" dates. All "From - To" dates must be entered with a "From" date as "MM-01-YR" and "To" dates as "MM-(28, 30, 31)-YR", representing the actual calendar days of that month. Enter lump sum payments (Retro/Transfers) using the entire number of days of that particular month and the amount paid. Ensure calculations include the ending balance of the last verified VA FUM. Copy and paste additional rows as necessary. Use the comment cells for informational purposes relating to each individual row. See FPG, 5. for further asistance.
A4: Income VA | B4: Payment Type | C4: From - Day 01 (i.e. 01/01/2018) | D4: To - Up To Day 31 (i.e., 01/31/2018) | E4: Monthly or Lump Sum Benefit | F4: Amount | G4: Comments VA Income
B5: Beginning Balance | C5: 2014-10-01 | D5: 2014-10-31 | E5: 32000 | F5: =E5 -> 32000 | G5: Beginning VA Estate Balance - Fid appointed 10-23-2014
B6: Retro | C6: 2014-10-01 | D6: 2014-10-01 | E6: 2976 | F6: =IF(ISNUMBER(E6),IF(B6="Prorated Payment",IF(AND((DAY(C6)=30),(DAY(D6)=31)),(DAYS360(C6,D6)+1)*(E6/30),IF(DAY(C6)<>31,IF(MONTH(D6)<>2,IF(DAY(D6)=31,DAYS360(C6,D6)*(E6/30),(DAYS360(C6,D6)+1)*(E6/30)),IF(DAY(D6)<28,(DAYS360(C6,D6)+1)*(E6/30),(DAYS360(C6,D6)+31-DAY(D6))*(E6/30))),IF(MONTH(D6)<>2,IF(DAY(D6)=31,DAYS360(C6,D6)*(E6/30),DAYS360(C6,D6)*(E6/30)),IF(DAY(D6)<28,DAYS360(C6,D6)*(E6/30),(DAYS360(C6,D6)+30-DAY(D6))*(E6/30))))),IF(B6="Retro",E6,IF(B6="Single Payment",E6, IF(B6="Monthly Payment",IF(AND((DAY(C6)=30),(DAY(D6)=31)),(DAYS360(C6,D6)+1)*(E6/30),IF(DAY(C6)<>31,IF(MONTH(D6)<>2,IF(DAY(D6)=31,DAYS360(C6,D6)*(E6/30),(DAYS360(C6,D6)+1)*(E6/30)),IF(DAY(D6)<28,(DAYS360(C6,D6)+1)*(E6/30),(DAYS360(C6,D6)+31-DAY(D6))*(E6/30))),IF(MONTH(D6)<>2,IF(DAY(D6)=31,DAYS360(C6,D6)*(E6/30),DAYS360(C6,D6)*(E6/30)),IF(DAY(D6)<28,DAYS360(C6,D6)*(E6/30),(DAYS360(C6,D6)+30-DAY(D6))*(E6/30))))), "")))), "") -> 2976
B7: Single Payment | C7: 2016-01-01 | D7: 2016-01-01 | E7: 3052 | F7: =IF(ISNUMBER(E7),IF(B7="Prorated Payment",IF(AND((DAY(C7)=30),(DAY(D7)=31)),(DAYS360(C7,D7)+1)*(E7/30),IF(DAY(C7)<>31,IF(MONTH(D7)<>2,IF(DAY(D7)=31,DAYS360(C7,D7)*(E7/30),(DAYS360(C7,D7)+1)*(E7/30)),IF(DAY(D7)<28,(DAYS360(C7,D7)+1)*(E7/30),(DAYS360(C7,D7)+31-DAY(D7))*(E7/30))),IF(MONTH(D7)<>2,IF(DAY(D7)=31,DAYS360(C7,D7)*(E7/30),DAYS360(C7,D7)*(E7/30)),IF(DAY(D7)<28,DAYS360(C7,D7)*(E7/30),(DAYS360(C7,D7)+30-DAY(D7))*(E7/30))))),IF(B7="Retro",E7,IF(B7="Single Payment",E7, IF(B7="Monthly Payment",IF(AND((DAY(C7)=30),(DAY(D7)=31)),(DAYS360(C7,D7)+1)*(E7/30),IF(DAY(C7)<>31,IF(MONTH(D7)<>2,IF(DAY(D7)=31,DAYS360(C7,D7)*(E7/30),(DAYS360(C7,D7)+1)*(E7/30)),IF(DAY(D7)<28,(DAYS360(C7,D7)+1)*(E7/30),(DAYS360(C7,D7)+31-DAY(D7))*(E7/30))),IF(MONTH(D7)<>2,IF(DAY(D7)=31,DAYS360(C7,D7)*(E7/30),DAYS360(C7,D7)*(E7/30)),IF(DAY(D7)<28,DAYS360(C7,D7)*(E7/30),(DAYS360(C7,D7)+30-DAY(D7))*(E7/30))))), "")))), "") -> 3052
B8: Monthly Payment | C8: 2017-01-01 | D8: 2017-02-28 | E8: 3105 | F8: 6210
B9: Prorated Payment | C9: 2016-01-01 | D9: 2016-02-15 | E9: 5000 | F9: 7500
E10: =IF(B10 = "Monthly Payment", "Enter MONTHLY Sum", IF(B10="Prorated Payment", "Enter MONTHLY Sum", IF(B10="Single Payment", "Enter LUMP Sum", IF(B10="Retro", "Enter LUMP Sum", "")))) -> 
E24: Total Income VA | F24: =SUM(F5:F23) -> 51738
A25: Income Other | C25: From - Day 01 (i.e. 01/01/2018) | D25: To - Up To Day 31 (i.e., 01/31/2018) | E25: Monthly or Lump Sum Benefit | F25: Amount | G25: Comments Other Income
B26: Beginning Balance | C26: 2014-10-01 | D26: 2014-10-31 | E26: 11000 | F26: =E26 -> 11000 | G26: Beginning Other Funds
B27: Single Payment | C27: 2015-11-01 | D27: 2015-11-01 | E27: 1023 | F27: =IF(ISNUMBER(E27),IF(B27="Prorated Payment", IF(AND((DAY(C27)=30),(DAY(D27)=31)),(DAYS360(C27,D27)+1)*(E27/30),IF(DAY(C27)<>31,IF(MONTH(D27)<>2,IF(DAY(D27)=31,DAYS360(C27,D27)*(E27/30),(DAYS360(C27,D27)+1)*(E27/30)),IF(DAY(D27)<28,(DAYS360(C27,D27)+1)*(E27/30),(DAYS360(C27,D27)+31-DAY(D27))*(E27/30))),IF(MONTH(D27)<>2,IF(DAY(D27)=31,DAYS360(C27,D27)*(E27/30),DAYS360(C27,D27)*(E27/30)),IF(DAY(D27)<28,DAYS360(C27,D27)*(E27/30),(DAYS360(C27,D27)+30-DAY(D27))*(E27/30))))), IF(B27="Retro", E27, IF(B27="Single Payment", E27, IF(B27="Monthly Payment", IF(AND((DAY(C27)=30),(DAY(D27)=31)),(DAYS360(C27,D27)+1)*(E27/30),IF(DAY(C27)<>31,IF(MONTH(D27)<>2,IF(DAY(D27)=31,DAYS360(C27,D27)*(E27/30),(DAYS360(C27,D27)+1)*(E27/30)),IF(DAY(D27)<28,(DAYS360(C27,D27)+1)*(E27/30),(DAYS360(C27,D27)+31-DAY(D27))*(E27/30))),IF(MONTH(D27)<>2,IF(DAY(D27)=31,DAYS360(C27,D27)*(E27/30),DAYS360(C27,D27)*(E27/30)),IF(DAY(D27)<28,DAYS360(C27,D27)*(E27/30),(DAYS360(C27,D27)+30-DAY(D27))*(E27/30))))),"")))), "") -> 1023
B28: Monthly Payment | C28: 2016-01-01 | D28: 2016-12-31 | E28: 1076 | F28: =IF(ISNUMBER(E28),IF(B28="Prorated Payment", IF(AND((DAY(C28)=30),(DAY(D28)=31)),(DAYS360(C28,D28)+1)*(E28/30),IF(DAY(C28)<>31,IF(MONTH(D28)<>2,IF(DAY(D28)=31,DAYS360(C28,D28)*(E28/30),(DAYS360(C28,D28)+1)*(E28/30)),IF(DAY(D28)<28,(DAYS360(C28,D28)+1)*(E28/30),(DAYS360(C28,D28)+31-DAY(D28))*(E28/30))),IF(MONTH(D28)<>2,IF(DAY(D28)=31,DAYS360(C28,D28)*(E28/30),DAYS360(C28,D28)*(E28/30)),IF(DAY(D28)<28,DAYS360(C28,D28)*(E28/30),(DAYS360(C28,D28)+30-DAY(D28))*(E28/30))))), IF(B28="Retro", E28, IF(B28="Single Payment", E28, IF(B28="Monthly Payment", IF(AND((DAY(C28)=30),(DAY(D28)=31)),(DAYS360(C28,D28)+1)*(E28/30),IF(DAY(C28)<>31,IF(MONTH(D28)<>2,IF(DAY(D28)=31,DAYS360(C28,D28)*(E28/30),(DAYS360(C28,D28)+1)*(E28/30)),IF(DAY(D28)<28,(DAYS360(C28,D28)+1)*(E28/30),(DAYS360(C28,D28)+31-DAY(D28))*(E28/30))),IF(MONTH(D28)<>2,IF(DAY(D28)=31,DAYS360(C28,D28)*(E28/30),DAYS360(C28,D28)*(E28/30)),IF(DAY(D28)<28,DAYS360(C28,D28)*(E28/30),(DAYS360(C28,D28)+30-DAY(D28))*(E28/30))))),"")))), "") -> 12912
B29: Prorated Payment | C29: 2017-01-01 | D29: 2017-02-15 | E29: 1092 | F29: 1638
E31: =IF(B31 = "Monthly Payment", "Enter MONTHLY Sum", IF(B31="Prorated Payment", "Enter MONTHLY Sum", IF(B31="Single Payment", "Enter LUMP Sum", IF(B31="Retro", "Enter LUMP Sum", "")))) -> 
E35: =IF(B35 = "Monthly Payment", "Enter MONTHLY Sum", IF(B35="Prorated Payment", "Enter MONTHLY Sum", IF(B35="Single Payment", "Enter LUMP Sum", IF(B35="Retro", "Enter LUMP Sum", "")))) -> 
E47: Total Income Other | F47: =SUM(F26:F46) -> 26573
E48: Total VA + Other | F48: =F24+F47 -> 78311
E49: % VA Income to Total Income | F49: =F24/F48 -> 0.6606734686
A50: Expenses Paid | C50: From - Day 01 (i.e. 01/01/2018) | D50: To - Up To Day 31 (i.e., 01/31/2018) | E50: Expense Amount | F50: Amount | G50: Comments Expenses
B51: Single Expense | C51: 2014-10-28 | D51: 2014-10-28 | E51: 2500 | F51: =IF(ISNUMBER(E51),IF(B51="Prorated Expense",IF(AND((DAY(C51)=30),(DAY(D51)=31)),(DAYS360(C51,D51)+1)*(E51/30),IF(DAY(C51)<>31,IF(MONTH(D51)<>2,IF(DAY(D51)=31,DAYS360(C51,D51)*(E51/30),(DAYS360(C51,D51)+1)*(E51/30)),IF(DAY(D51)<28,(DAYS360(C51,D51)+1)*(E51/30),(DAYS360(C51,D51)+31-DAY(D51))*(E51/30))),IF(MONTH(D51)<>2,IF(DAY(D51)=31,DAYS360(C51,D51)*(E51/30),DAYS360(C51,D51)*(E51/30)),IF(DAY(D51)<28,DAYS360(C51,D51)*(E51/30),(DAYS360(C51,D51)+30-DAY(D51))*(E51/30))))),IF(B51="Single Expense",E51,IF(B51="Monthly Expense",IF(AND((DAY(C51)=30),(DAY(D51)=31)),(DAYS360(C51,D51)+1)*(E51/30),IF(DAY(C51)<>31,IF(MONTH(D51)<>2,IF(DAY(D51)=31,DAYS360(C51,D51)*(E51/30),(DAYS360(C51,D51)+1)*(E51/30)),IF(DAY(D51)<28,(DAYS360(C51,D51)+1)*(E51/30),(DAYS360(C51,D51)+31-DAY(D51))*(E51/30))),IF(MONTH(D51)<>2,IF(DAY(D51)=31,DAYS360(C51,D51)*(E51/30),DAYS360(C51,D51)*(E51/30)),IF(DAY(D51)<28,DAYS360(C51,D51)*(E51/30),(DAYS360(C51,D51)+30-DAY(D51))*(E51/30))))),""))),"") -> 2500
B52: Monthly Expense | C52: 2014-11-01 | D52: 2015-10-31 | E52: 2350 | F52: =IF(ISNUMBER(E52),IF(B52="Prorated Expense",IF(AND((DAY(C52)=30),(DAY(D52)=31)),(DAYS360(C52,D52)+1)*(E52/30),IF(DAY(C52)<>31,IF(MONTH(D52)<>2,IF(DAY(D52)=31,DAYS360(C52,D52)*(E52/30),(DAYS360(C52,D52)+1)*(E52/30)),IF(DAY(D52)<28,(DAYS360(C52,D52)+1)*(E52/30),(DAYS360(C52,D52)+31-DAY(D52))*(E52/30))),IF(MONTH(D52)<>2,IF(DAY(D52)=31,DAYS360(C52,D52)*(E52/30),DAYS360(C52,D52)*(E52/30)),IF(DAY(D52)<28,DAYS360(C52,D52)*(E52/30),(DAYS360(C52,D52)+30-DAY(D52))*(E52/30))))),IF(B52="Single Expense",E52,IF(B52="Monthly Expense",IF(AND((DAY(C52)=30),(DAY(D52)=31)),(DAYS360(C52,D52)+1)*(E52/30),IF(DAY(C52)<>31,IF(MONTH(D52)<>2,IF(DAY(D52)=31,DAYS360(C52,D52)*(E52/30),(DAYS360(C52,D52)+1)*(E52/30)),IF(DAY(D52)<28,(DAYS360(C52,D52)+1)*(E52/30),(DAYS360(C52,D52)+31-DAY(D52))*(E52/30))),IF(MONTH(D52)<>2,IF(DAY(D52)=31,DAYS360(C52,D52)*(E52/30),DAYS360(C52,D52)*(E52/30)),IF(DAY(D52)<28,DAYS360(C52,D52)*(E52/30),(DAYS360(C52,D52)+30-DAY(D52))*(E52/30))))),""))),"") -> 28200 | G52: Authorized allowances
B53: Prorated Expense | C53: 2015-11-01 | D53: 2017-02-28 | E53: 2420 | F53: 38720 | G53: Revised authorized or allowed expenses from fidben
E54: =IF(B54="Monthly Expense","Enter MONTHLY Sum",IF(B54="Prorated Expense","Enter MONTHLY Sum",IF(B54="Single Expense","Enter LUMP Sum",""))) -> 
A61: Placeholder
E62: Total Expenses: | F62: =SUM(F51:F61) -> 69420
E63: Total Remaining FUM | F63: =F48-F62 -> 8891
E64: VA Applied to Expenses | F64: =F49*F62 -> 45863.95219 | G64: =F62-F64 -> 23556.04781
E65: Remaining VA FUM | F65: =F24-F64 -> 5874.047809 | G65: =F63-F65 -> 3016.952191
E66: Total Funds Accounted For or Transferred | F66: 10000 | G66: Enter Total Funds Accounted For At End Of Accounting Period or Transferred.
E67: % VA Accounted or Transferred | F67: =F66*F49 -> 6606.734686
E68: % Other Accounted or Transferred | F68: =F66-F67 -> 3393.265314
E69: VA Misuse Amount | F69: =IF(AND(F67>=F65),0,F65-F67) -> 0
E70: Other Misuse Amount | F70: =IF(AND(F68>=G65),0,((F63-F66)-F69)) -> 0
E71: Total Misuse Amount | F71: =F69+F70 -> 0
